[Event "Titled Tuesday Blitz March 22 Early 2022"]
[White "Nenezic, Marko"]
[Black "Brunner, Nicolas"]
[WhiteFideId "912123"]
[BlackFideId "620246"]
[WhiteElo "2457"]
[BlackElo "2372"]
[Result "0-1"]
[Round "04"]
[TimeControl "180+1"]
[Date "2022.03.22"]
[WhiteClock "0:00:05"]
[BlackClock "0:00:08"]

1. Nf3 {[%clk 0:02:58]}  c5 {[%clk 0:02:59]} 2. c4 {[%clk 0:02:56]}  Nc6 {[%clk 0:02:57]} 3. d4 {[%clk 0:02:57]}  cxd4 {[%clk 0:02:57]} 4. Nxd4 {[%clk 0:02:57]}  Nf6 {[%clk 0:02:56]} 5. Nc3 {[%clk 0:02:58]}  e6 {[%clk 0:02:49]} 6. Bf4 {[%clk 0:02:58]}  d5 {[%clk 0:02:32]} 7. e3 {[%clk 0:02:56]}  Bb4 {[%clk 0:02:24]} 8. Nxc6 {[%clk 0:02:56]}  bxc6 {[%clk 0:02:24]} 9. Qa4 {[%clk 0:02:56]}  Qb6 {[%clk 0:02:17]} 10. Bd3 {[%clk 0:02:33]}  O-O {[%clk 0:02:16]} 11. O-O {[%clk 0:02:33]}  Re8 {[%clk 0:02:10]} 12. a3 {[%clk 0:02:28]}  Bf8 {[%clk 0:02:06]} 13. b4 {[%clk 0:02:08]}  h6 {[%clk 0:02:04]} 14. Be5 {[%clk 0:01:57]}  Ng4 {[%clk 0:01:57]} 15. Bg3 {[%clk 0:01:57]}  a5 {[%clk 0:01:37]} 16. cxd5 {[%clk 0:01:41]}  Nxe3 {[%clk 0:01:26]} 17. Rfe1 {[%clk 0:01:14]}  Ng4 {[%clk 0:01:08]} 18. Qxc6 {[%clk 0:01:06]}  Qxc6 {[%clk 0:01:06]} 19. dxc6 {[%clk 0:01:07]}  axb4 {[%clk 0:01:06]} 20. axb4 {[%clk 0:01:08]}  Rxa1 {[%clk 0:01:06]} 21. Rxa1 {[%clk 0:01:09]}  Bxb4 {[%clk 0:01:06]} 22. Nb5 {[%clk 0:01:06]}  e5 {[%clk 0:01:00]} 23. h3 {[%clk 0:00:57]}  Nf6 {[%clk 0:00:59]} 24. Ra8 {[%clk 0:00:57]}  e4 {[%clk 0:00:35]} 25. Bc4 {[%clk 0:00:55]}  Bf5 {[%clk 0:00:24]} 26. Ra7 {[%clk 0:00:37]}  Bg6 {[%clk 0:00:23]} 27. Bd6 {[%clk 0:00:38]}  Bd2 {[%clk 0:00:20]} 28. c7 {[%clk 0:00:36]}  e3 {[%clk 0:00:19]} 29. fxe3 {[%clk 0:00:24]}  Bxe3+ {[%clk 0:00:19]} 30. Kh2 {[%clk 0:00:24]}  Bxa7 {[%clk 0:00:18]} 31. Nxa7 {[%clk 0:00:25]}  Bf5 {[%clk 0:00:18]} 32. Ba6 {[%clk 0:00:25]}  Ne4 {[%clk 0:00:18]} 33. Bf4 {[%clk 0:00:20]}  g5 {[%clk 0:00:18]} 34. Bg3 {[%clk 0:00:17]}  Nxg3 {[%clk 0:00:11]} 35. Kxg3 {[%clk 0:00:18]}  Re3+ {[%clk 0:00:10]} 36. Kf2 {[%clk 0:00:17]}  Ra3 {[%clk 0:00:10]} 37. Nc6 {[%clk 0:00:09]}  Rxa6 {[%clk 0:00:07]} 38. Ne7+ {[%clk 0:00:09]}  Kf8 {[%clk 0:00:07]} 39. Nxf5 {[%clk 0:00:10]}  Rc6 {[%clk 0:00:07]} 40. Nxh6 {[%clk 0:00:10]}  Rxc7 {[%clk 0:00:07]} 41. g4 {[%clk 0:00:10]}  Rc3 {[%clk 0:00:06]} 42. Kg2 {[%clk 0:00:10]}  Ke7 {[%clk 0:00:07]} 43. Kh2 {[%clk 0:00:09]}  Ke6 {[%clk 0:00:07]} 44. Kg2 {[%clk 0:00:09]}  f6 {[%clk 0:00:07]} 45. Nf5 {[%clk 0:00:10]}  Ke5 {[%clk 0:00:07]} 46. Ne7 {[%clk 0:00:08]}  Rc2+ {[%clk 0:00:07]} 47. Kf3 {[%clk 0:00:08]}  Rc3+ {[%clk 0:00:07]} 48. Kg2 {[%clk 0:00:08]}  Ra3 {[%clk 0:00:07]} 49. Kh2 {[%clk 0:00:05]}  Ke4 {[%clk 0:00:07]} 50. Kg2 {[%clk 0:00:05]}  Ra2+ {[%clk 0:00:08]} 51. Kg3 {[%clk 0:00:05]}  Ra7 {[%clk 0:00:08]} 52. Nf5 {[%clk 0:00:05]}  Ra3+ {[%clk 0:00:08]} 53. Kg2 {[%clk 0:00:05]}  Kf4 {[%clk 0:00:08]} 0-1


[Site "https://www.chess.com"]

[Event "Titled Tuesday Blitz March 22 Early 2022"]
[White "Perez Gormaz, Matias"]
[Black "Begunov, Konstantin"]
[WhiteFideId "3406342"]
[BlackFideId "4118510"]
[WhiteElo "2327"]
[BlackElo "2262"]
[Result "1-0"]
[Round "04"]
[TimeControl "180+1"]
[Date "2022.03.22"]
[WhiteClock "0:00:17"]
[BlackClock "0:00:13"]

1. e4 {[%clk 0:03:00]}  c5 {[%clk 0:02:59]} 2. Nf3 {[%clk 0:02:59]}  d6 {[%clk 0:03:00]} 3. d4 {[%clk 0:02:57]}  cxd4 {[%clk 0:03:01]} 4. Nxd4 {[%clk 0:02:58]}  Nf6 {[%clk 0:03:01]} 5. Nc3 {[%clk 0:02:58]}  a6 {[%clk 0:03:02]} 6. Bg5 {[%clk 0:02:55]}  e6 {[%clk 0:03:01]} 7. f4 {[%clk 0:02:51]}  Qb6 {[%clk 0:03:01]} 8. Nb3 {[%clk 0:02:47]}  Nbd7 {[%clk 0:03:00]} 9. Qe2 {[%clk 0:02:38]}  Be7 {[%clk 0:02:58]} 10. O-O-O {[%clk 0:02:38]}  Qc7 {[%clk 0:02:57]} 11. g4 {[%clk 0:02:35]}  b5 {[%clk 0:02:56]} 12. a3 {[%clk 0:02:35]}  Bb7 {[%clk 0:02:56]} 13. Bg2 {[%clk 0:02:34]}  Nc5 {[%clk 0:02:22]} 14. Nd4 {[%clk 0:02:27]}  h6 {[%clk 0:02:02]} 15. Bh4 {[%clk 0:02:17]}  Nfxe4 {[%clk 0:01:51]} 16. Nxe4 {[%clk 0:02:17]}  Bxh4 {[%clk 0:01:51]} 17. Nxe6 {[%clk 0:02:07]}  Nxe6 {[%clk 0:01:15]} 18. Nxd6+ {[%clk 0:02:07]}  Kf8 {[%clk 0:01:08]} 19. Bxb7 {[%clk 0:02:06]}  Rd8 {[%clk 0:01:04]} 20. Nf5 {[%clk 0:01:51]}  Qxf4+ {[%clk 0:00:30]} 21. Kb1 {[%clk 0:01:49]}  Bf6 {[%clk 0:00:28]} 22. Rhe1 {[%clk 0:01:25]}  Rxd1+ {[%clk 0:00:25]} 23. Qxd1 {[%clk 0:01:26]}  g6 {[%clk 0:00:25]} 24. Nd6 {[%clk 0:01:22]}  Kg7 {[%clk 0:00:23]} 25. Bd5 {[%clk 0:01:21]}  Ng5 {[%clk 0:00:20]} 26. Bb3 {[%clk 0:01:14]}  Rd8 {[%clk 0:00:20]} 27. Ne8+ {[%clk 0:01:14]}  Kf8 {[%clk 0:00:17]} 28. Qe2 {[%clk 0:01:09]}  Nf3 {[%clk 0:00:17]} 29. Nxf6 {[%clk 0:00:30]}  Nxe1 {[%clk 0:00:17]} 30. Nd5 {[%clk 0:00:20]}  Qd4 {[%clk 0:00:16]} 31. Qe7+ {[%clk 0:00:18]}  Kg7 {[%clk 0:00:15]} 32. Qxd8 {[%clk 0:00:18]}  Qd1+ {[%clk 0:00:13]} 33. Ka2 {[%clk 0:00:18]}  Nf3 {[%clk 0:00:13]} 34. Qf6+ {[%clk 0:00:18]}  Kf8 {[%clk 0:00:13]} 35. Qh8# {[%clk 0:00:17]} 1-0


[Site "https://www.chess.com"]

[Event "Titled Tuesday Blitz March 22 Early 2022"]
[White "Prohorov, Olexandr"]
[Black "Orlov, Georgi"]
[WhiteFideId "14105578"]
[BlackFideId "2011271"]
[WhiteElo "1993"]
[BlackElo "2544"]
[Result "0-1"]
[Round "04"]
[TimeControl "180+1"]
[Date "2022.03.22"]
[WhiteClock "0:00:43"]
[BlackClock "0:00:19"]

1. Nf3 {[%clk 0:03:00]}  Nf6 {[%clk 0:02:48]} 2. c4 {[%clk 0:02:59]}  e6 {[%clk 0:02:47]} 3. Nc3 {[%clk 0:02:58]}  Bb4 {[%clk 0:02:46]} 4. g4 {[%clk 0:02:58]}  d5 {[%clk 0:02:43]} 5. g5 {[%clk 0:02:57]}  Ne4 {[%clk 0:02:37]} 6. Qc2 {[%clk 0:02:56]}  Nxg5 {[%clk 0:02:25]} 7. Nxg5 {[%clk 0:02:40]}  Qxg5 {[%clk 0:02:24]} 8. cxd5 {[%clk 0:02:35]}  exd5 {[%clk 0:02:21]} 9. Qb3 {[%clk 0:02:30]}  Bxc3 {[%clk 0:02:15]} 10. dxc3 {[%clk 0:02:31]}  Qe5 {[%clk 0:02:11]} 11. Be3 {[%clk 0:02:28]}  Nc6 {[%clk 0:02:07]} 12. O-O-O {[%clk 0:02:28]}  O-O {[%clk 0:01:52]} 13. Qxd5 {[%clk 0:02:26]}  Qxd5 {[%clk 0:01:45]} 14. Rxd5 {[%clk 0:02:27]}  Be6 {[%clk 0:01:45]} 15. Rd2 {[%clk 0:02:25]}  Bxa2 {[%clk 0:01:40]} 16. Bg2 {[%clk 0:02:19]}  Na5 {[%clk 0:01:40]} 17. Kc2 {[%clk 0:02:12]}  Bb3+ {[%clk 0:01:39]} 18. Kb1 {[%clk 0:02:10]}  Rfd8 {[%clk 0:01:34]} 19. Be4 {[%clk 0:02:01]}  Rxd2 {[%clk 0:01:29]} 20. Bxd2 {[%clk 0:02:01]}  c6 {[%clk 0:01:27]} 21. Rg1 {[%clk 0:01:53]}  Re8 {[%clk 0:01:22]} 22. f3 {[%clk 0:01:49]}  Bd5 {[%clk 0:01:16]} 23. Bd3 {[%clk 0:01:46]}  f6 {[%clk 0:01:04]} 24. Rg4 {[%clk 0:01:33]}  b5 {[%clk 0:01:02]} 25. Kc2 {[%clk 0:01:25]}  Bb3+ {[%clk 0:01:00]} 26. Kc1 {[%clk 0:01:24]}  Bc4 {[%clk 0:01:00]} 27. b4 {[%clk 0:01:01]}  Nb3+ {[%clk 0:00:58]} 28. Kc2 {[%clk 0:01:00]}  Nxd2 {[%clk 0:00:54]} 29. Kxd2 {[%clk 0:00:59]}  Bxd3 {[%clk 0:00:42]} 30. Kxd3 {[%clk 0:00:59]}  Rd8+ {[%clk 0:00:42]} 31. Kc2 {[%clk 0:00:59]}  Kf7 {[%clk 0:00:33]} 32. Rh4 {[%clk 0:01:00]}  h6 {[%clk 0:00:33]} 33. Rh5 {[%clk 0:01:00]}  Rd5 {[%clk 0:00:31]} 34. Rh4 {[%clk 0:00:57]}  h5 {[%clk 0:00:22]} 35. Re4 {[%clk 0:00:56]}  Re5 {[%clk 0:00:20]} 36. Rxe5 {[%clk 0:00:53]}  fxe5 {[%clk 0:00:20]} 37. Kd3 {[%clk 0:00:54]}  g5 {[%clk 0:00:19]} 38. Ke4 {[%clk 0:00:47]}  Kf6 {[%clk 0:00:19]} 39. h3 {[%clk 0:00:48]}  Ke6 {[%clk 0:00:18]} 40. e3 {[%clk 0:00:48]}  Kf6 {[%clk 0:00:18]} 41. f4 {[%clk 0:00:46]}  exf4 {[%clk 0:00:18]} 42. exf4 {[%clk 0:00:47]}  g4 {[%clk 0:00:18]} 43. hxg4 {[%clk 0:00:43]}  hxg4 {[%clk 0:00:18]} 44. f5 {[%clk 0:00:42]}  g3 {[%clk 0:00:18]} 45. Kf3 {[%clk 0:00:43]}  Kxf5 {[%clk 0:00:18]} 46. Kxg3 {[%clk 0:00:43]}  Ke4 {[%clk 0:00:19]} 47. Kf2 {[%clk 0:00:43]}  Kd3 {[%clk 0:00:19]} 0-1


[Site "https://www.chess.com"]

[Event "Titled Tuesday Blitz March 22 Early 2022"]
[White "Rodrigue-Lemieux, Shawn"]
[Black "Nepomniachtchi, Ian"]
[WhiteFideId "2620049"]
[BlackFideId "4168119"]
[WhiteElo "1763"]
[BlackElo "2740"]
[Result "0-1"]
[Round "04"]
[TimeControl "180+1"]
[Date "2022.03.22"]
[WhiteClock "0:00:30"]
[BlackClock "0:01:44"]

1. c4 {[%clk 0:03:00]}  e5 {[%clk 0:02:59]} 2. g3 {[%clk 0:03:01]}  Nc6 {[%clk 0:02:59]} 3. Bg2 {[%clk 0:03:01]}  h5 {[%clk 0:02:57]} 4. h3 {[%clk 0:03:00]}  Bc5 {[%clk 0:02:56]} 5. Nc3 {[%clk 0:03:00]}  d6 {[%clk 0:02:56]} 6. Nf3 {[%clk 0:03:00]}  Be6 {[%clk 0:02:55]} 7. d3 {[%clk 0:03:00]}  a6 {[%clk 0:02:52]} 8. a3 {[%clk 0:02:58]}  Nge7 {[%clk 0:02:51]} 9. b4 {[%clk 0:02:57]}  Ba7 {[%clk 0:02:51]} 10. Ng5 {[%clk 0:02:48]}  Bf5 {[%clk 0:02:48]} 11. Nd5 {[%clk 0:02:46]}  f6 {[%clk 0:02:46]} 12. Ne4 {[%clk 0:02:38]}  Nxd5 {[%clk 0:02:45]} 13. cxd5 {[%clk 0:02:39]}  Ne7 {[%clk 0:02:46]} 14. Nc3 {[%clk 0:02:30]}  Qd7 {[%clk 0:02:45]} 15. Bb2 {[%clk 0:02:29]}  Bg6 {[%clk 0:02:35]} 16. Rc1 {[%clk 0:02:29]}  h4 {[%clk 0:02:34]} 17. g4 {[%clk 0:02:28]}  f5 {[%clk 0:02:35]} 18. e3 {[%clk 0:02:23]}  O-O {[%clk 0:02:34]} 19. gxf5 {[%clk 0:02:15]}  Nxf5 {[%clk 0:02:20]} 20. Ne4 {[%clk 0:02:08]}  Qf7 {[%clk 0:02:02]} 21. O-O {[%clk 0:01:49]}  Bh5 {[%clk 0:02:01]} 22. Bf3 {[%clk 0:01:29]}  Qg6+ {[%clk 0:01:46]} 23. Kh2 {[%clk 0:01:13]}  Bxf3 {[%clk 0:01:45]} 24. Qxf3 {[%clk 0:01:10]}  Nxe3 {[%clk 0:01:44]} 25. fxe3 {[%clk 0:01:08]}  Rxf3 {[%clk 0:01:44]} 26. Rxf3 {[%clk 0:01:08]}  Rf8 {[%clk 0:01:44]} 27. Rxf8+ {[%clk 0:01:05]}  Kxf8 {[%clk 0:01:45]} 28. Rxc7 {[%clk 0:01:06]}  Bxe3 {[%clk 0:01:45]} 29. Rc8+ {[%clk 0:00:42]}  Ke7 {[%clk 0:01:44]} 30. Rc7+ {[%clk 0:00:29]}  Kd8 {[%clk 0:01:44]} 31. Rxb7 {[%clk 0:00:30]}  Qg1# {[%clk 0:01:44]} 0-1


[Site "https://www.chess.com"]

[Event "Titled Tuesday Blitz March 22 Early 2022"]
[White "Rudykh, Stepan"]
[Black "Purtseladze, Maka"]
[WhiteFideId "4180321"]
[BlackFideId "13602659"]
[WhiteElo "2119"]
[BlackElo "2224"]
[Result "1-0"]
[Round "04"]
[TimeControl "180+1"]
[Date "2022.03.22"]
[WhiteClock "0:00:07"]
[BlackClock "0:00:04"]

1. e4 {[%clk 0:03:00]}  c6 {[%clk 0:02:59]} 2. d4 {[%clk 0:03:00]}  d5 {[%clk 0:03:00]} 3. Nc3 {[%clk 0:03:00]}  dxe4 {[%clk 0:03:00]} 4. Nxe4 {[%clk 0:03:01]}  Nf6 {[%clk 0:02:59]} 5. Nxf6+ {[%clk 0:03:02]}  exf6 {[%clk 0:03:00]} 6. c3 {[%clk 0:03:02]}  Bd6 {[%clk 0:03:00]} 7. Bd3 {[%clk 0:03:02]}  O-O {[%clk 0:02:59]} 8. Qc2 {[%clk 0:03:03]}  Re8+ {[%clk 0:02:59]} 9. Ne2 {[%clk 0:03:03]}  h5 {[%clk 0:02:59]} 10. h3 {[%clk 0:02:59]}  Nd7 {[%clk 0:02:58]} 11. Bh7+ {[%clk 0:02:58]}  Kh8 {[%clk 0:02:57]} 12. Be4 {[%clk 0:02:59]}  Nf8 {[%clk 0:02:54]} 13. Be3 {[%clk 0:02:57]}  Qa5 {[%clk 0:02:29]} 14. O-O {[%clk 0:02:52]}  Bd7 {[%clk 0:02:29]} 15. Nf4 {[%clk 0:02:38]}  g6 {[%clk 0:02:20]} 16. Nd3 {[%clk 0:02:16]}  f5 {[%clk 0:02:17]} 17. Bf3 {[%clk 0:02:16]}  Qc7 {[%clk 0:02:14]} 18. c4 {[%clk 0:02:05]}  f4 {[%clk 0:02:10]} 19. Bd2 {[%clk 0:02:05]}  Bf5 {[%clk 0:02:10]} 20. Bc3 {[%clk 0:02:00]}  Kg8 {[%clk 0:01:52]} 21. Rad1 {[%clk 0:01:51]}  Rad8 {[%clk 0:01:49]} 22. Qb3 {[%clk 0:01:45]}  Be7 {[%clk 0:01:46]} 23. d5 {[%clk 0:01:27]}  c5 {[%clk 0:01:32]} 24. Rfe1 {[%clk 0:01:02]}  Bd6 {[%clk 0:01:29]} 25. Bf6 {[%clk 0:00:55]}  Rb8 {[%clk 0:01:20]} 26. Qc3 {[%clk 0:00:43]}  Nd7 {[%clk 0:01:01]} 27. Bh8 {[%clk 0:00:38]}  f6 {[%clk 0:01:00]} 28. Bxf6 {[%clk 0:00:36]}  Nxf6 {[%clk 0:01:01]} 29. Qxf6 {[%clk 0:00:36]}  Rxe1+ {[%clk 0:00:52]} 30. Nxe1 {[%clk 0:00:35]}  Rf8 {[%clk 0:00:50]} 31. Qc3 {[%clk 0:00:25]}  Be5 {[%clk 0:00:50]} 32. Qc1 {[%clk 0:00:25]}  Qd6 {[%clk 0:00:50]} 33. Nd3 {[%clk 0:00:23]}  Bxd3 {[%clk 0:00:45]} 34. Rxd3 {[%clk 0:00:24]}  Bd4 {[%clk 0:00:44]} 35. Be4 {[%clk 0:00:22]}  Kg7 {[%clk 0:00:42]} 36. Rf3 {[%clk 0:00:17]}  Qe5 {[%clk 0:00:40]} 37. Qc2 {[%clk 0:00:17]}  Rf6 {[%clk 0:00:36]} 38. Kh2 {[%clk 0:00:14]}  Rb6 {[%clk 0:00:34]} 39. b3 {[%clk 0:00:14]}  g5 {[%clk 0:00:34]} 40. g3 {[%clk 0:00:14]}  Rf6 {[%clk 0:00:32]} 41. a3 {[%clk 0:00:10]}  g4 {[%clk 0:00:31]} 42. hxg4 {[%clk 0:00:08]}  hxg4 {[%clk 0:00:29]} 43. gxf4 {[%clk 0:00:07]}  Rxf4 {[%clk 0:00:30]} 44. Rxf4 {[%clk 0:00:07]}  Qxf4+ {[%clk 0:00:31]} 45. Kg2 {[%clk 0:00:07]}  Bxf2 {[%clk 0:00:28]} 46. Qxf2 {[%clk 0:00:07]}  Qxe4+ {[%clk 0:00:29]} 47. Kg3 {[%clk 0:00:08]}  Qd3+ {[%clk 0:00:24]} 48. Kxg4 {[%clk 0:00:08]}  Qxb3 {[%clk 0:00:25]} 49. Qf4 {[%clk 0:00:07]}  Qd1+ {[%clk 0:00:21]} 50. Kf5 {[%clk 0:00:07]}  Qd3+ {[%clk 0:00:21]} 51. Ke6 {[%clk 0:00:06]}  Qg6+ {[%clk 0:00:20]} 52. Kd7 {[%clk 0:00:06]}  Qa6 {[%clk 0:00:16]} 53. Qe5+ {[%clk 0:00:04]}  Kf8 {[%clk 0:00:15]} 54. Qd6+ {[%clk 0:00:03]}  Qxd6+ {[%clk 0:00:11]} 55. Kxd6 {[%clk 0:00:04]}  Ke8 {[%clk 0:00:09]} 56. Kxc5 {[%clk 0:00:03]}  Kd7 {[%clk 0:00:10]} 57. Kd4 {[%clk 0:00:03]}  b6 {[%clk 0:00:10]} 58. Ke5 {[%clk 0:00:03]}  Ke7 {[%clk 0:00:10]} 59. Kd4 {[%clk 0:00:03]}  Kd6 {[%clk 0:00:10]} 60. Kc3 {[%clk 0:00:04]}  Kc5 {[%clk 0:00:10]} 61. Kb3 {[%clk 0:00:04]}  a6 {[%clk 0:00:09]} 62. Ka4 {[%clk 0:00:04]}  b5+ {[%clk 0:00:02]} 63. cxb5 {[%clk 0:00:04]}  axb5+ {[%clk 0:00:03]} 64. Ka5 {[%clk 0:00:04]}  b4 {[%clk 0:00:01]} 65. axb4+ {[%clk 0:00:04]}  Kxd5 {[%clk 0:00:02]} 66. b5 {[%clk 0:00:04]}  Kd6 {[%clk 0:00:02]} 67. Ka6 {[%clk 0:00:05]}  Kc7 {[%clk 0:00:03]} 68. Ka7 {[%clk 0:00:05]}  Kd6 {[%clk 0:00:03]} 69. b6 {[%clk 0:00:06]}  Kc5 {[%clk 0:00:04]} 70. b7 {[%clk 0:00:07]}  Kc6 {[%clk 0:00:04]} 71. b8=Q {[%clk 0:00:07]} 1-0


[Site "https://www.chess.com"]

[Event "Titled Tuesday Blitz March 22 Early 2022"]
[White "Ruge, Edison"]
[Black "Atakhan, Abtin"]
[WhiteFideId "4401000"]
[BlackFideId "22502203"]
[WhiteElo "2175"]
[BlackElo "2119"]
[Result "0-1"]
[Round "04"]
[TimeControl "180+1"]
[Date "2022.03.22"]
[WhiteClock "0:01:30"]
[BlackClock "0:01:19"]

1. e4 {[%clk 0:02:59]}  c5 {[%clk 0:02:59]} 2. Nf3 {[%clk 0:02:59]}  Nc6 {[%clk 0:02:59]} 3. d3 {[%clk 0:02:59]}  g6 {[%clk 0:02:59]} 4. g3 {[%clk 0:03:00]}  Bg7 {[%clk 0:02:59]} 5. Bg2 {[%clk 0:03:00]}  d6 {[%clk 0:02:58]} 6. O-O {[%clk 0:03:00]}  e6 {[%clk 0:02:57]} 7. h3 {[%clk 0:03:01]}  Nge7 {[%clk 0:02:58]} 8. h4 {[%clk 0:02:59]}  h6 {[%clk 0:02:56]} 9. h5 {[%clk 0:02:58]}  g5 {[%clk 0:02:55]} 10. Nh2 {[%clk 0:02:59]}  b5 {[%clk 0:02:47]} 11. Nc3 {[%clk 0:02:46]}  b4 {[%clk 0:02:46]} 12. Ne2 {[%clk 0:02:46]}  Rb8 {[%clk 0:02:44]} 13. Rb1 {[%clk 0:02:46]}  Nd4 {[%clk 0:02:32]} 14. f4 {[%clk 0:02:40]}  Nec6 {[%clk 0:02:27]} 15. Be3 {[%clk 0:02:35]}  Nxe2+ {[%clk 0:02:20]} 16. Qxe2 {[%clk 0:02:34]}  Nd4 {[%clk 0:02:21]} 17. Qd1 {[%clk 0:02:33]}  gxf4 {[%clk 0:02:15]} 18. Bxf4 {[%clk 0:02:30]}  Rg8 {[%clk 0:01:55]} 19. Ng4 {[%clk 0:02:24]}  e5 {[%clk 0:01:41]} 20. Bxh6 {[%clk 0:02:23]}  Bxh6 {[%clk 0:01:33]} 21. Nxh6 {[%clk 0:02:23]}  Rxg3 {[%clk 0:01:33]} 22. Nxf7 {[%clk 0:02:21]}  Qh4 {[%clk 0:01:22]} 23. Nxd6+ {[%clk 0:02:12]}  Ke7 {[%clk 0:01:20]} 24. Nf5+ {[%clk 0:01:31]}  Bxf5 {[%clk 0:01:20]} 25. exf5 {[%clk 0:01:31]}  Rxg2+ {[%clk 0:01:18]} 26. Kxg2 {[%clk 0:01:30]}  Rg8+ {[%clk 0:01:19]} 0-1


[Site "https://www.chess.com"]

[Event "Titled Tuesday Blitz March 22 Early 2022"]
[White "Sailer, Mike"]
[Black "Gunina, Valentina"]
[WhiteFideId "2012901"]
[BlackFideId "4167570"]
[WhiteElo "2109"]
[BlackElo "2436"]
[Result "1-0"]
[Round "04"]
[TimeControl "180+1"]
[Date "2022.03.22"]
[WhiteClock "0:01:03"]
[BlackClock "0:02:19"]

1. d4 {[%clk 0:03:00]}  d5 {[%clk 0:02:58]} 2. Nf3 {[%clk 0:02:59]}  Nf6 {[%clk 0:02:53]} 3. Bf4 {[%clk 0:02:59]}  c5 {[%clk 0:02:53]} 4. e3 {[%clk 0:02:59]}  cxd4 {[%clk 0:02:53]} 5. exd4 {[%clk 0:02:59]}  Nc6 {[%clk 0:02:53]} 6. c3 {[%clk 0:02:56]}  Bf5 {[%clk 0:02:53]} 7. Be2 {[%clk 0:02:55]}  e6 {[%clk 0:02:53]} 8. O-O {[%clk 0:02:55]}  Bd6 {[%clk 0:02:53]} 9. Ne5 {[%clk 0:02:55]}  O-O {[%clk 0:02:53]} 10. Nd2 {[%clk 0:02:56]}  Qc7 {[%clk 0:02:53]} 11. Ndf3 {[%clk 0:02:56]}  Ne4 {[%clk 0:02:51]} 12. Bd3 {[%clk 0:02:31]}  f6 {[%clk 0:02:38]} 13. Nxc6 {[%clk 0:02:31]}  Bxf4 {[%clk 0:02:35]} 14. Nb4 {[%clk 0:02:29]}  a5 {[%clk 0:02:33]} 15. Nc2 {[%clk 0:02:29]}  Bg4 {[%clk 0:02:29]} 16. h3 {[%clk 0:02:29]}  Bxf3 {[%clk 0:02:27]} 17. Qxf3 {[%clk 0:02:21]}  Nd2 {[%clk 0:02:27]} 18. Qe2 {[%clk 0:02:17]}  Nxf1 {[%clk 0:02:28]} 19. Qxe6+ {[%clk 0:02:17]}  Qf7 {[%clk 0:02:26]} 20. Qf5 {[%clk 0:02:05]}  Bh2+ {[%clk 0:02:25]} 21. Kxf1 {[%clk 0:02:02]}  g6 {[%clk 0:02:25]} 22. Qf3 {[%clk 0:01:53]}  Bc7 {[%clk 0:02:24]} 23. Ne3 {[%clk 0:01:48]}  Rfd8 {[%clk 0:02:24]} 24. c4 {[%clk 0:01:43]}  Bb6 {[%clk 0:02:24]} 25. Ng4 {[%clk 0:01:03]}  Bxd4 {[%clk 0:02:19]} 26. Nh6+ {[%clk 0:01:03]} 1-0


[Site "https://www.chess.com"]

[Event "Titled Tuesday Blitz March 22 Early 2022"]
[White "Salinas Herrera, Pablo"]
[Black "Altman, Joshua"]
[WhiteFideId "3407128"]
[BlackFideId "426210"]
[WhiteElo "2541"]
[BlackElo "1945"]
[Result "1-0"]
[Round "04"]
[TimeControl "180+1"]
[Date "2022.03.22"]
[WhiteClock "0:00:10"]
[BlackClock "0:00:07"]

1. d4 {[%clk 0:03:00]}  Nf6 {[%clk 0:03:00]} 2. Nf3 {[%clk 0:03:00]}  e6 {[%clk 0:03:00]} 3. Bf4 {[%clk 0:03:01]}  b6 {[%clk 0:03:00]} 4. e3 {[%clk 0:03:02]}  Bb7 {[%clk 0:03:01]} 5. Nbd2 {[%clk 0:03:02]}  Be7 {[%clk 0:03:01]} 6. Bd3 {[%clk 0:03:02]}  O-O {[%clk 0:03:01]} 7. e4 {[%clk 0:03:02]}  c5 {[%clk 0:02:59]} 8. c3 {[%clk 0:03:02]}  cxd4 {[%clk 0:02:56]} 9. cxd4 {[%clk 0:03:03]}  d6 {[%clk 0:02:56]} 10. O-O {[%clk 0:03:02]}  Nbd7 {[%clk 0:02:55]} 11. Re1 {[%clk 0:03:03]}  Re8 {[%clk 0:02:53]} 12. Rc1 {[%clk 0:03:03]}  Rc8 {[%clk 0:02:53]} 13. Qa4 {[%clk 0:03:01]}  a6 {[%clk 0:02:41]} 14. h3 {[%clk 0:02:58]}  b5 {[%clk 0:02:40]} 15. Qb3 {[%clk 0:02:58]}  Nb6 {[%clk 0:02:38]} 16. Be3 {[%clk 0:02:54]}  d5 {[%clk 0:02:27]} 17. e5 {[%clk 0:02:54]}  Nfd7 {[%clk 0:02:27]} 18. Nf1 {[%clk 0:02:49]}  Nc4 {[%clk 0:02:26]} 19. Bb1 {[%clk 0:02:48]}  Qb6 {[%clk 0:02:16]} 20. Ng3 {[%clk 0:02:46]}  Nf8 {[%clk 0:02:16]} 21. Nh2 {[%clk 0:02:41]}  a5 {[%clk 0:02:16]} 22. Ng4 {[%clk 0:02:31]}  a4 {[%clk 0:02:15]} 23. Qd1 {[%clk 0:02:32]}  Nxb2 {[%clk 0:02:04]} 24. Qf3 {[%clk 0:02:32]}  Rxc1 {[%clk 0:01:46]} 25. Rxc1 {[%clk 0:02:31]}  Rc8 {[%clk 0:01:30]} 26. Rxc8 {[%clk 0:02:31]}  Bxc8 {[%clk 0:01:31]} 27. Nh5 {[%clk 0:02:32]}  Qa5 {[%clk 0:01:15]} 28. Kh2 {[%clk 0:01:50]}  Ng6 {[%clk 0:01:02]} 29. Bh6 {[%clk 0:01:33]}  Bf8 {[%clk 0:00:46]} 30. Bxg7 {[%clk 0:00:14]}  Bxg7 {[%clk 0:00:33]} 31. Nxg7 {[%clk 0:00:15]}  Qd2 {[%clk 0:00:10]} 32. Nh5 {[%clk 0:00:09]}  Qxd4 {[%clk 0:00:06]} 33. Nh6+ {[%clk 0:00:09]}  Kh8 {[%clk 0:00:06]} 34. Nxf7+ {[%clk 0:00:09]}  Kg8 {[%clk 0:00:06]} 35. Nh6+ {[%clk 0:00:09]}  Kh8 {[%clk 0:00:07]} 36. Qf6# {[%clk 0:00:10]} 1-0


[Site "https://www.chess.com"]